fUSD/lending_fUSD_20250911
["ID","MTS","AMOUNT","RATE_DAILY","PERIOD"]
[384925066,1757627490668,-595.56,0.00028219,7]
[384925067,1757627490677,-541.07,0.00028219,7]
[384925068,1757627490687,-439.31,0.00028219,7]
[384925069,1757627490696,-400.0,0.00028219,7]
[384925070,1757627490705,-400.0,0.00028219,7]
[384925071,1757627490715,-400.0,0.00028219,7]
[384925072,1757627490724,-995.46,0.00028219,7]
[384925073,1757627490734,-400.0,0.00028219,7]
[384925074,1757627490743,-1889.23,0.00028219,7]
[384925075,1757627490753,-400.0,0.00028219,7]
[384925076,1757627490762,-1159.7,0.00028219,7]
[384925077,1757627490771,-404.78,0.00028219,7]
[384925078,1757627490782,-400.0,0.00028219,7]
[384925079,1757627490791,-400.0,0.00028219,7]
[384925080,1757627490800,-182.62299307,0.00028219,7]
[384925081,1757627490809,-892.23,0.00028219,7]
[384925082,1757627490818,-400.0,0.00028219,7]
[384925083,1757627490827,-568.18,0.00028219,7]
[384925084,1757627490836,-403.03,0.00028219,7]
[384925085,1757627490846,-1401.18,0.00028219,7]
[384925086,1757627490855,-458.22,0.00028219,7]
[384925087,1757627490864,-400.0,0.00028219,7]
[384925088,1757627490875,-1506.44,0.00028219,7]
[384925089,1757627490884,-400.0,0.00028219,7]
[384925090,1757627490893,-653.84,0.00028219,7]
[384925091,1757627490903,-1579.45,0.00028219,7]
[384925092,1757627490912,-400.0,0.00028219,7]
[384925093,1757627490923,-400.0,0.00028219,7]
[384925094,1757627490933,-596.11,0.00028219,7]
[384925095,1757627490944,-614.15,0.00028219,7]
[384925096,1757627490954,-400.0,0.00028219,7]
[384925097,1757627490964,-400.0,0.00028219,7]
[384925098,1757627490973,-400.0,0.00028219,7]
[384925099,1757627490983,-400.0,0.00028219,7]
[384925100,1757627490992,-1013.76,0.00028219,7]
[384925101,1757627491001,-400.0,0.00028219,7]
[384925102,1757627491011,-400.0,0.00028219,7]
[384925103,1757627491020,-228.78691678,0.00028219,7]
[384925104,1757627491030,-1714.22,0.00028219,7]
[384925105,1757627491041,-517.47,0.00028219,7]
[384925106,1757627491051,-1096.07,0.00028219,7]
[384925107,1757627491062,-416.5574839,0.00028219,7]
[384925108,1757627491072,-400.0,0.00028219,7]
[384925109,1757627491082,-1253.03,0.00028219,7]
[384925110,1757627491091,-400.0,0.00028219,7]
[384925111,1757627491101,-1145.97,0.00028219,7]
[384925112,1757627491110,-400.0,0.00028219,7]
[384925113,1757627491120,-400.0,0.00028219,7]
[384925114,1757627491129,-1745.67,0.00028219,7]
[384925115,1757627491139,-727.42,0.00028219,7]
[384925116,1757627491149,-400.0,0.00028219,7]
[384925117,1757627491160,-400.0,0.00028219,7]
[384925118,1757627491171,-375.28894471,0.00028219,7]
[384925119,1757627491180,-400.0,0.00028219,7]
[384925120,1757627491189,-583.39,0.00028219,7]
[384925121,1757627491199,-400.0,0.00028219,7]
[384925122,1757627491208,-400.0,0.00028219,7]
[384925123,1757627491217,-576.54,0.00028219,7]
[384925124,1757627491227,-400.0,0.00028219,7]
[384925125,1757627491236,-1541.62,0.00028219,7]
[384925126,1757627491246,-400.0,0.00028219,7]
[384925127,1757627491256,-921.85,0.00028219,7]
[384925128,1757627491267,-426.23,0.00028219,7]
[384925129,1757627491276,-400.0,0.00028219,7]
[384925130,1757627491285,-2304.65,0.00028219,7]
[384925131,1757627491295,-1433.65,0.00028219,7]
[384925132,1757627491304,-400.0,0.00028219,7]
[384925133,1757627491318,-1278.47,0.00028219,7]
[384925134,1757627491328,-400.0,0.00028219,7]
[384925135,1757627491337,-400.0,0.00028219,7]
[384925136,1757627491347,-506.5,0.00028219,7]
[384925137,1757627491356,-400.0,0.00028219,7]
[384925138,1757627491366,-1307.66,0.00028219,7]
[384925139,1757627491376,-400.0,0.00028219,7]
[384925140,1757627491385,-400.0,0.00028219,7]
[384925141,1757627491395,-1245.35,0.00028219,7]
[384925142,1757627491404,-1371.0,0.00028219,7]
[384925143,1757627491414,-400.0,0.00028219,7]
[384925144,1757627491424,-400.0,0.00028219,7]
[384925145,1757627491434,-400.0,0.00028219,7]
[384925146,1757627491444,-418.64037624,0.00028219,7]
[384925147,1757627491453,-400.0,0.00028219,7]
[384925148,1757627491463,-506.24,0.00028219,7]
[384925149,1757627491472,-1050.18,0.00028219,7]
[384925150,1757627491482,-400.0,0.00028219,7]
[384925151,1757627491491,-1616.64,0.00028219,7]
[384925152,1757627491500,-1120.7,0.00028219,7]
[384925153,1757627491510,-1151.78,0.00028219,7]
[384925154,1757627491519,-521.28,0.00028219,7]
[384925155,1757627491528,-1013.69,0.00028219,7]
[384925156,1757627491537,-400.0,0.00028219,7]
[384925157,1757627491547,-410.77310142,0.00028219,7]
[384925158,1757627491556,-151.68241328,0.00028219,2]
[384925159,1757627491565,-634.88,0.00028219,7]
[384925160,1757627491686,-400.0,0.00028219,7]
[384925161,1757627491696,-2767.55,0.00028219,7]
[384925162,1757627491705,-1117.29,0.00028219,7]
[384925163,1757627491715,-422.28,0.00028219,7]
[384925164,1757627491724,-428.8,0.00028219,7]
[384925165,1757627491734,-1735.26,0.00028219,7]
[384925166,1757627491743,-400.0,0.00028219,7]
[384925167,1757627491753,-400.0,0.00028219,7]
[384925168,1757627491762,-400.0,0.00028219,7]
[384925169,1757627491771,-400.0,0.00028219,7]
[384925170,1757627491780,-1678.88,0.00028219,7]
[384925171,1757627491789,-400.0,0.00028219,7]
[384925172,1757627491798,-522.94,0.00028219,7]
[384925173,1757627491807,-150.0,0.00028219,2]
[384925174,1757627491816,-412.38,0.00028219,7]
[384925175,1757627491826,-752.82,0.00028219,7]
[384925176,1757627491835,-400.0,0.00028219,7]
[384925177,1757627491844,-412.30616582,0.00028219,7]
[384925178,1757627491853,-150.0,0.00028219,2]
[384925179,1757627491862,-2172.72,0.00028219,7]
[384925180,1757627491871,-221.32206416,0.00028219,2]
[384925181,1757627491880,-479.83,0.00028219,7]
[384925182,1757627491890,-400.0,0.00028219,7]
[384925183,1757627491899,-645.68,0.00028219,7]
[384925184,1757627491908,-1991.58,0.00028219,7]
[384925185,1757627491917,-684.67,0.00028219,7]
[384925186,1757627491926,-400.0,0.00028219,7]
[384925187,1757627491935,-1865.74,0.00028219,7]
[384925188,1757627491944,-1236.15,0.00028219,7]
[384925189,1757627491956,-703.53,0.00028219,7]
[384925190,1757627491965,-2285.17,0.00028219,7]
[384925191,1757627491975,-400.0,0.00028219,7]
[384925192,1757627491984,-1603.43,0.00028219,7]
[384925193,1757627491994,-400.0,0.00028219,7]
[384925194,1757627492004,-620.1,0.00028219,7]
[384925195,1757627492015,-1983.9,0.00028219,7]
[384925196,1757627492024,-400.0,0.00028219,7]
[384925197,1757627492033,-2163.46,0.00028219,7]
[384925198,1757627492042,-941.57,0.00028219,7]
[384925199,1757627492051,-400.0,0.00028219,7]
[384925200,1757627492060,-434.84,0.00028219,7]
[384925201,1757627492069,-1569.39,0.00028219,7]
[384925202,1757627492079,-400.0,0.00028219,7]
[384925203,1757627492088,-931.18,0.00028219,7]
[384925204,1757627492097,-400.0,0.00028219,7]
[384925205,1757627492107,-1230.65,0.00028219,7]
[384925206,1757627492116,-2317.42,0.00028219,7]
[384925207,1757627492126,-535.67,0.00028219,7]
[384925208,1757627492135,-644.68,0.00028219,7]
[384925209,1757627492144,-1234.23,0.00028219,7]
[384925210,1757627492153,-919.77,0.00028219,7]
[384925211,1757627492163,-1771.81,0.00028219,7]
[384925212,1757627492172,-400.0,0.00028219,7]
[384925213,1757627492181,-400.0,0.00028219,7]
[384925214,1757627492191,-400.0,0.00028219,7]
[384925215,1757627492200,-400.0,0.00028219,7]
[384925216,1757627492209,-508.25,0.00028219,7]
[384925217,1757627492218,-2325.79,0.00028219,7]
[384925218,1757627492227,-1609.41,0.00028219,7]
[384925219,1757627492236,-568.33,0.00028219,7]
[384925220,1757627492246,-816.93,0.00028219,7]
[384925221,1757627492256,-1798.92,0.00028219,7]
[384925222,1757627492266,-1386.18,0.00028219,7]
[384925223,1757627492276,-1213.37,0.00028219,7]
[384925224,1757627492286,-280.34944582,0.00028219,7]
[384925225,1757627492296,-400.0,0.00028219,7]
[384925226,1757627492305,-400.0,0.00028219,7]
[384925227,1757627492318,-400.0,0.00028219,7]
[384925228,1757627492328,-1999.59,0.00028219,7]
[384925229,1757627492337,-400.0,0.00028219,7]
[384925230,1757627492346,-1552.95,0.00028219,7]
[384925231,1757627492356,-403.06,0.00028219,7]
[384925232,1757627492365,-1732.83,0.00028219,7]
[384925233,1757627492375,-400.0,0.00028219,7]
[384925234,1757627492384,-465.53,0.00028219,7]
[384925235,1757627492394,-400.0,0.00028219,7]
[384925236,1757627492404,-709.04,0.00028219,7]
[384925237,1757627492414,-955.01,0.00028219,7]
[384925238,1757627492423,-400.0,0.00028219,7]
[384925239,1757627492432,-2037.8,0.00028219,7]
[384925240,1757627492442,-400.0,0.00028219,7]
[384925241,1757627492452,-1760.98,0.00028219,7]
[384925242,1757627492461,-1465.12,0.00028219,7]
[384925243,1757627492470,-943.48,0.00028219,7]
[384925244,1757627492479,-897.82,0.00028219,7]
[384925245,1757627492489,-400.0,0.00028219,7]
[384925246,1757627492498,-737.11,0.00028219,7]
[384925247,1757627492508,-674.73,0.00028219,7]
[384925248,1757627492517,-666.9,0.00028219,7]
[384925249,1757627492526,-400.0,0.00028219,7]
[384925250,1757627492535,-222.02810553,0.00028219,7]
[384925251,1757627492544,-2358.03,0.00028219,7]
[384925252,1757627492554,-400.0,0.00028219,7]
[384925253,1757627492564,-486.32703359,0.00028219,7]
[384925254,1757627492573,-400.0,0.00028219,7]
[384925255,1757627492584,-1950.94,0.00028219,7]
[384925256,1757627492594,-2454.36,0.00028219,7]
[384925257,1757627492603,-200.25268077,0.00028219,7]
[384925258,1757627492612,-400.0,0.00028219,7]
[384925259,1757627492622,-441.45756856,0.00028219,7]
[384925260,1757627492631,-400.0,0.00028219,7]
[384925261,1757627492640,-781.35,0.00028219,7]
[384925262,1757627492649,-1589.11,0.00028219,7]
[384925263,1757627492658,-610.63,0.00028219,7]
[384925264,1757627492667,-1911.65,0.00028219,7]
[384925265,1757627492677,-645.89,0.00028219,7]
[384925266,1757627492686,-400.0,0.00028219,7]
[384925267,1757627492696,-400.0,0.00028219,7]
[384925268,1757627492705,-429.42,0.00028219,7]
[384925269,1757627492715,-2211.08,0.00028219,7]
[384925270,1757627492724,-1761.27,0.00028219,7]
[384925271,1757627492734,-1275.46,0.00028219,7]
[384925272,1757627492743,-452.08,0.00028219,7]
[384925273,1757627492752,-903.15,0.00028219,7]
[384925274,1757627492761,-730.4,0.00028219,7]
[384925275,1757627492771,-1244.21,0.00028219,7]
[384925276,1757627492780,-1272.64,0.00028219,7]
[384925277,1757627492789,-2147.52,0.00028219,7]
[384925278,1757627492798,-1608.5,0.00028219,7]
[384925279,1757627492807,-474.19,0.00028219,7]
[384925280,1757627492816,-400.0,0.00028219,2]
[384925281,1757627492825,-468.6,0.00028219,7]
[384925282,1757627492834,-400.0,0.00028219,7]
[384925283,1757627492843,-726.05,0.00028219,7]
[384925284,1757627492852,-1333.63,0.00028219,7]
[384925285,1757627492861,-2117.57,0.00028219,7]
[384925286,1757627492870,-2353.72,0.00028219,7]
[384925287,1757627492880,-400.0,0.00028219,7]
[384925288,1757627492889,-400.0,0.00028219,7]
[384925289,1757627492899,-410.31,0.00028219,7]
[384925290,1757627492908,-400.0,0.00028219,7]
[384925291,1757627492916,-400.0,0.00028219,7]
[384925292,1757627492926,-400.0,0.00028219,7]
[384925293,1757627492935,-792.77,0.00028219,7]
[384925294,1757627492944,-2010.24,0.00028219,7]
[384925295,1757627492954,-564.18,0.00028219,7]
[384925296,1757627492964,-1805.19,0.00028219,7]
[384925297,1757627492973,-400.0,0.00028219,7]
[384925298,1757627492983,-1520.22,0.00028219,7]
[384925299,1757627492992,-825.64,0.00028219,7]
[384925300,1757627493001,-1290.72,0.00028219,7]
[384925301,1757627493011,-1603.55,0.00028219,7]
[384925302,1757627493020,-1459.31,0.00028219,7]
[384925303,1757627493030,-2714.64,0.00028219,7]
[384925304,1757627493039,-400.0,0.00028219,7]
[384925305,1757627493048,-909.86,0.00028219,7]
[384925306,1757627493058,-1370.73,0.00028219,7]
[384925307,1757627493067,-2356.36,0.00028219,7]
[384925308,1757627493077,-820.52,0.00028219,7]
[384925309,1757627493086,-1552.2,0.00028219,7]
[384925310,1757627493095,-832.81,0.00028219,7]
[384925311,1757627493104,-980.62,0.00028219,7]
[384925312,1757627493114,-436.16,0.00028219,7]
[384925313,1757627493123,-2368.21,0.00028219,7]
[384925314,1757627493133,-2310.49,0.00028219,7]
[384925315,1757627493142,-751.05,0.00028219,7]
[384925316,1757627493151,-400.0,0.00028219,7]
[384925317,1757627493160,-521.56,0.00028219,7]
[384925318,1757627493169,-690.1,0.00028219,7]
[384925319,1757627493178,-1138.65,0.00028219,7]
[384925320,1757627493188,-400.0,0.00028219,7]
[384925321,1757627493197,-614.59,0.00028219,7]
[384925322,1757627493206,-400.0,0.00028219,7]
[384925323,1757627493215,-1234.09,0.00028219,7]
[384925324,1757627493224,-1139.8,0.00028219,7]
[384925325,1757627493233,-1357.28,0.00028219,7]
[384925326,1757627493242,-483.0,0.00028219,7]
[384925327,1757627493251,-2221.87,0.00028219,7]
[384925328,1757627493260,-764.53,0.00028219,7]
[384925329,1757627493270,-400.0,0.00028219,7]
[384925330,1757627493279,-400.0,0.00028219,7]
[384925331,1757627493288,-893.59,0.00028219,7]
[384925332,1757627493297,-616.29,0.00028219,7]
[384925333,1757627493308,-497.07,0.00028219,7]
[384925334,1757627493319,-2494.05,0.00028219,7]
[384925335,1757627493329,-1961.97,0.00028219,7]
[384925336,1757627493338,-429.41193431,0.00028219,7]
[384925337,1757627493347,-715.83,0.00028219,7]
[384925338,1757627493358,-400.0,0.00028219,7]
[384925339,1757627493367,-400.0,0.00028219,7]
[384925340,1757627493377,-2400.41,0.00028219,7]
[384925341,1757627493388,-400.0,0.00028219,7]
[384925342,1757627493398,-400.0,0.00028219,7]
[384925343,1757627493408,-1350.64,0.00028219,7]
[384925344,1757627493418,-400.0,0.00028219,7]
[384925345,1757627493427,-1152.15,0.00028219,7]
[384925346,1757627493436,-1942.36,0.00028219,7]
[384925347,1757627493446,-400.0,0.00028219,7]
[384925348,1757627493456,-1745.53,0.00028219,7]
[384925349,1757627493465,-400.0,0.00028219,7]
[384925350,1757627493475,-1304.87,0.00028219,7]
[384925351,1757627493484,-2239.53,0.00028219,7]
[384925352,1757627493494,-1080.41,0.00028219,7]
[384925353,1757627493503,-400.0,0.00028219,7]
[384925354,1757627493512,-1587.86,0.00028219,7]
[384925355,1757627493521,-400.0,0.00028219,7]
[384925356,1757627493531,-772.24,0.00028219,7]
[384925357,1757627493540,-1535.99,0.00028219,7]
[384925358,1757627493550,-400.0,0.00028219,7]
[384925359,1757627493559,-1709.93,0.00028219,7]
[384925360,1757627493568,-681.33,0.00028219,7]
[384925361,1757627493578,-827.79,0.00028219,7]
[384925362,1757627493587,-1405.7,0.00028219,7]
[384925363,1757627493596,-1894.71,0.00028219,7]
[384925364,1757627493606,-1305.44,0.00028219,7]
[384925365,1757627493615,-670.2,0.00028219,7]
[384925366,1757627493624,-2336.96,0.00028219,7]
[384925367,1757627493634,-400.0,0.00028219,7]
[384925368,1757627493644,-663.76,0.00028219,7]
[384925369,1757627493654,-1721.31,0.00028219,7]
[384925370,1757627493664,-400.0,0.00028219,7]
[384925371,1757627493676,-2672.17,0.00028219,7]
[384925372,1757627493686,-1652.48,0.00028219,7]
[384925373,1757627493697,-1555.35,0.00028219,7]
[384925374,1757627493707,-400.0,0.00028219,7]
[384925375,1757627493716,-400.0,0.00028219,7]
[384925376,1757627493725,-1705.56,0.00028219,7]
[384925377,1757627493734,-400.0,0.00028219,7]
[384925378,1757627493744,-400.0,0.00028219,7]
[384925379,1757627493754,-900.41,0.00028219,7]
[384925380,1757627493763,-1924.73,0.00028219,7]
[384925381,1757627493772,-897.52,0.00028219,7]
[384925382,1757627493781,-400.0,0.00028219,7]
[384925383,1757627493791,-2115.38,0.00028219,7]
[384925384,1757627493800,-400.0,0.00028219,7]
[384925385,1757627493809,-2279.93,0.00028219,7]
[384925386,1757627493819,-400.0,0.00028219,7]
[384925387,1757627493828,-400.0,0.00028219,7]
[384925388,1757627493838,-622.31,0.00028219,7]
[384925389,1757627493848,-1153.84,0.00028219,7]
[384925390,1757627493857,-400.0,0.00028219,7]
[384925391,1757627493866,-519.0,0.00028219,7]
[384925392,1757627493875,-1849.34,0.00028219,7]
[384925393,1757627493885,-400.0,0.00028219,7]
[384925394,1757627493894,-1244.32,0.00028219,7]
[384925395,1757627493903,-418.22,0.00028219,7]
[384925396,1757627493913,-1903.92,0.00028219,7]
[384925397,1757627493922,-926.52,0.00028219,7]
[384925398,1757627493931,-2054.75,0.00028219,7]
[384925399,1757627493940,-2269.52,0.00028219,7]
[384925400,1757627493950,-891.18,0.00028219,7]
[384925401,1757627493959,-774.47,0.00028219,7]
[384925402,1757627493968,-1816.52,0.00028219,7]
[384925403,1757627493977,-400.0,0.00028219,7]
[384925404,1757627493987,-1861.78,0.00028219,7]
[384925405,1757627493997,-1516.31,0.00028219,7]
[384925406,1757627494006,-1776.85,0.00028219,7]
[384925407,1757627494015,-400.0,0.00028219,7]
[384925408,1757627494024,-542.44700169,0.00028219,7]
[384925409,1757627494033,-400.0,0.00028219,7]
[384925410,1757627494043,-400.0,0.00028219,7]
[384925411,1757627494051,-777.81,0.00028219,7]
[384925412,1757627494061,-946.01,0.00028219,7]
[384925413,1757627494070,-1366.26,0.00028219,7]
[384925414,1757627494079,-400.0,0.00028219,7]
[384925415,1757627494088,-2170.93,0.00028219,7]
[384925416,1757627494098,-619.87,0.00028219,7]
[384925417,1757627494107,-544.78,0.00028219,7]
[384925418,1757627494117,-400.0,0.00028219,7]
[384925419,1757627494126,-400.0,0.00028219,7]
[384925420,1757627494135,-2122.23,0.00028219,7]
[384925421,1757627494144,-400.0,0.00028219,7]
[384925422,1757627494153,-1168.45,0.00028219,7]
[384925423,1757627494162,-928.76,0.00028219,7]
[384925424,1757627494171,-1186.62,0.00028219,7]
[384925425,1757627494180,-1039.0,0.00028219,7]
[384925426,1757627494189,-400.0,0.00028219,7]
[384925427,1757627494198,-1372.99,0.00028219,7]
[384925428,1757627494208,-525.55,0.00028219,7]
[384925429,1757627494217,-400.0,0.00028219,7]
[384925430,1757627494227,-1647.59,0.00028219,7]
[384925431,1757627494236,-451.69,0.00028219,7]
[384925432,1757627494247,-730.82,0.00028219,7]
[384925433,1757627494255,-1488.12,0.00028219,7]
[384925434,1757627494266,-400.0,0.00028219,7]
[384925435,1757627494275,-2407.69,0.00028219,7]
[384925436,1757627494284,-400.0,0.00028219,7]
[384925437,1757627494294,-1661.64,0.00028219,7]
[384925438,1757627494303,-400.0,0.00028219,7]
[384925439,1757627494314,-1847.44,0.00028219,7]
[384925440,1757627494324,-812.44,0.00028219,7]
[384925441,1757627494333,-2974.72,0.00028219,7]
[384925442,1757627494342,-2154.39,0.00028219,7]
[384925443,1757627494351,-400.0,0.00028219,7]
[384925444,1757627494361,-400.0,0.00028219,7]
[384925445,1757627494370,-400.0,0.00028219,7]
[384925446,1757627494380,-2409.57,0.00028219,7]
[384925447,1757627494389,-1505.1,0.00028219,7]
[384925448,1757627494401,-826.95,0.00028219,7]
[384925449,1757627494410,-2357.19,0.00028219,7]
[384925450,1757627494420,-415.59,0.00028219,7]
[384925451,1757627494429,-400.0,0.00028219,7]
[384925452,1757627494442,-400.0,0.00028219,7]
[384925453,1757627494462,-1209.2,0.00028219,7]
[384925454,1757627494483,-1222.72,0.00028219,7]
[384925455,1757627494504,-2029.82,0.00028219,7]
[384925456,1757627494525,-467.93,0.00028219,7]
[384925457,1757627494547,-2376.92,0.00028219,7]
[384925458,1757627494568,-1576.35,0.00028219,7]
[384925459,1757627494590,-400.0,0.00028219,7]
[384925460,1757627494612,-400.0,0.00028219,7]
[384925461,1757627494636,-619.65,0.00028219,7]
[384925462,1757627494657,-470.19385393,0.00028219,7]
[384925463,1757627494678,-831.1,0.00028219,7]
[384925464,1757627494700,-2286.96,0.00028219,7]
[384925465,1757627494722,-400.0,0.00028219,7]
[384925466,1757627494743,-683.59,0.00028219,7]
[384925467,1757627494762,-663.74,0.00028219,7]
[384925468,1757627494771,-400.0,0.00028219,7]
[384925469,1757627494780,-517.61,0.00028219,7]
[384925470,1757627494789,-753.25,0.00028219,7]
[384925471,1757627494799,-2533.56,0.00028219,7]
[384925472,1757627494808,-400.0,0.00028219,7]
[384925473,1757627494817,-1527.86,0.00028219,7]
[384925474,1757627494827,-400.0,0.00028219,7]
[384925475,1757627494836,-1146.83,0.00028219,7]
[384925476,1757627494846,-400.0,0.00028219,7]
[384925477,1757627494855,-400.0,0.00028219,7]
[384925478,1757627494864,-1894.11,0.00028219,7]
[384925479,1757627494874,-290.40060682,0.00028219,7]
[384925480,1757627494883,-487.19,0.00028219,7]
[384925481,1757627494892,-1816.71,0.00028219,7]
[384925482,1757627494901,-621.23,0.00028219,7]
[384925483,1757627494910,-636.93,0.00028219,7]
[384925484,1757627494919,-262.00972448,0.00028219,7]
[384925485,1757627494928,-597.77,0.00028219,7]
[384925486,1757627494937,-1978.38,0.00028219,7]
[384925487,1757627494946,-278.51750099,0.00028219,7]
[384925488,1757627494956,-400.0,0.00028219,7]
[384925489,1757627494965,-804.92,0.00028219,7]
[384925490,1757627494974,-1032.8,0.00028219,7]
[384925491,1757627494983,-400.0,0.00028219,7]
[384925492,1757627494992,-400.0,0.00028219,7]
[384925493,1757627495001,-2188.58,0.00028219,7]
[384925494,1757627495010,-1200.87,0.00028219,7]
[384925495,1757627495019,-783.81,0.00028219,7]
[384925496,1757627495028,-1046.78,0.00028219,7]
[384925497,1757627495037,-400.0,0.00028219,7]
[384925498,1757627495047,-1611.77,0.00028219,7]
[384925499,1757627495056,-434.23,0.00028219,7]
[384925500,1757627495065,-400.0,0.00028219,7]
[384925501,1757627495074,-2777.49,0.00028219,7]
[384925502,1757627495083,-467.51,0.00028219,7]
[384925503,1757627495092,-2380.05,0.00028219,7]
[384925504,1757627495102,-400.0,0.00028219,7]
[384925505,1757627495111,-400.0,0.00028219,7]
[384925506,1757627495120,-400.0,0.00028219,7]
[384925507,1757627495129,-432.14,0.00028219,7]
[384925508,1757627495138,-936.21,0.00028219,7]
[384925509,1757627495147,-400.0,0.00028219,7]
[384925510,1757627495156,-612.46,0.00028219,7]
[384925511,1757627495166,-400.0,0.00028219,7]
[384925512,1757627495175,-619.53,0.00028219,7]
[384925513,1757627495184,-400.0,0.00028219,7]
[384925514,1757627495193,-502.36,0.00028219,7]
[384925515,1757627495203,-726.74,0.00028219,7]
[384925516,1757627495212,-400.0,0.00028219,7]
[384925517,1757627495222,-708.25,0.00028219,7]
[384925518,1757627495232,-687.63,0.00028219,7]
[384925519,1757627495241,-525.18,0.00028219,7]
[384925520,1757627495251,-2492.29,0.00028219,7]
[384925521,1757627495260,-400.0,0.00028219,7]
[384925522,1757627495270,-1811.61,0.00028219,7]
[384925523,1757627495280,-400.0,0.00028219,7]
[384925524,1757627495289,-2450.83,0.00028219,7]
[384925525,1757627495299,-3678.48,0.00028219,7]
[384925526,1757627495311,-451.31,0.00028219,7]
[384925527,1757627495321,-400.0,0.00028219,7]
[384925528,1757627495331,-1480.88,0.00028219,7]
[384925529,1757627495340,-400.0,0.00028219,7]
[384925530,1757627495349,-400.0,0.00028219,7]
[384925531,1757627495359,-400.0,0.00028219,7]
[384925532,1757627495368,-824.46,0.00028219,7]
[384925533,1757627495377,-400.0,0.00028219,7]
[384925534,1757627495386,-400.0,0.00028219,7]
[384925535,1757627495396,-615.43,0.00028219,7]
[384925536,1757627495405,-1733.33,0.00028219,7]
[384925537,1757627495414,-1426.55,0.00028219,7]
[384925538,1757627495423,-400.0,0.00028219,7]
[384925539,1757627495433,-400.0,0.00028219,7]
[384925540,1757627495443,-1444.75,0.00028219,7]
[384925541,1757627495461,-656.5,0.00028219,7]
[384925542,1757627495470,-663.82,0.00028219,7]
[384925543,1757627495479,-400.0,0.00028219,7]
[384925544,1757627495489,-1413.55,0.00028219,7]
[384925545,1757627495498,-1859.7,0.00028219,7]
[384925546,1757627495507,-400.0,0.00028219,7]
[384925547,1757627495516,-400.0,0.00028219,7]
[384925548,1757627495526,-1657.72,0.00028219,7]
[384925549,1757627495535,-400.0,0.00028219,7]
[384925550,1757627495544,-400.0,0.00028219,7]
[384925551,1757627495553,-1771.5,0.00028219,7]
[384925552,1757627495563,-400.0,0.00028219,7]
[384925553,1757627495572,-1895.65,0.00028219,7]
[384925554,1757627495581,-1281.78,0.00028219,7]
[384925555,1757627495591,-1064.31,0.00028219,7]
[384925556,1757627495601,-1607.9,0.00028219,7]
[384925557,1757627495610,-618.96,0.00028219,7]
[384925558,1757627495620,-400.0,0.00028219,7]
[384925559,1757627495629,-400.0,0.00028219,7]
[384925560,1757627495638,-400.0,0.00028219,7]
[384925561,1757627495648,-555.14,0.00028219,7]
[384925562,1757627495657,-418.87926763,0.00028219,7]
[384925563,1757627495666,-400.0,0.00028219,7]
[384925564,1757627495675,-400.0,0.00028219,7]
[384925565,1757627495685,-8723.99,0.00028219,7]